[Event "Titled Tuesday Blitz October 11 Late 2022"]
[White "O`Gorman, Tom"]
[Black "Rabineau, Clement"]
[WhiteFideId "2508249"]
[BlackFideId "628891"]
[WhiteElo "2271"]
[BlackElo "2237"]
[Result "1-0"]
[Round "04"]
[TimeControl "180+1"]
[Date "2022.10.12"]
[WhiteClock "0:01:43"]
[BlackClock "0:00:05"]

1. e4 {[%clk 0:03:00]}  d6 {[%clk 0:03:00]} 2. d4 {[%clk 0:02:59]}  g6 {[%clk 0:03:01]} 3. Nc3 {[%clk 0:02:59]}  Bg7 {[%clk 0:03:01]} 4. Be2 {[%clk 0:02:59]}  Nc6 {[%clk 0:03:00]} 5. Be3 {[%clk 0:02:58]}  e5 {[%clk 0:03:00]} 6. dxe5 {[%clk 0:02:56]}  Bxe5 {[%clk 0:02:52]} 7. Qd2 {[%clk 0:02:54]}  Nf6 {[%clk 0:02:51]} 8. Nf3 {[%clk 0:02:54]}  Bxc3 {[%clk 0:02:40]} 9. Qxc3 {[%clk 0:02:55]}  O-O {[%clk 0:02:20]} 10. Bd3 {[%clk 0:02:50]}  Ng4 {[%clk 0:02:14]} 11. Bg5 {[%clk 0:02:47]}  f6 {[%clk 0:02:02]} 12. Bd2 {[%clk 0:02:45]}  Nge5 {[%clk 0:01:46]} 13. O-O-O {[%clk 0:02:43]}  a5 {[%clk 0:01:31]} 14. Kb1 {[%clk 0:02:39]}  Be6 {[%clk 0:01:30]} 15. h4 {[%clk 0:02:33]}  Nb4 {[%clk 0:01:06]} 16. a3 {[%clk 0:02:31]}  c5 {[%clk 0:01:06]} 17. Nxe5 {[%clk 0:02:26]}  fxe5 {[%clk 0:01:04]} 18. Bc4 {[%clk 0:02:26]}  Qd7 {[%clk 0:00:13]} 19. Bxe6+ {[%clk 0:02:04]}  Qxe6 {[%clk 0:00:13]} 20. axb4 {[%clk 0:02:05]}  axb4 {[%clk 0:00:14]} 21. Qb3 {[%clk 0:02:04]}  c4 {[%clk 0:00:14]} 22. Qxb4 {[%clk 0:02:04]}  d5 {[%clk 0:00:11]} 23. Rh3 {[%clk 0:02:00]}  d4 {[%clk 0:00:09]} 24. Be1 {[%clk 0:01:55]}  c3 {[%clk 0:00:08]} 25. Qb3 {[%clk 0:01:51]}  Qxb3 {[%clk 0:00:05]} 26. cxb3 {[%clk 0:01:52]}  cxb2 {[%clk 0:00:03]} 27. Kxb2 {[%clk 0:01:52]}  Rf4 {[%clk 0:00:03]} 28. f3 {[%clk 0:01:50]}  Rc8 {[%clk 0:00:04]} 29. Rc1 {[%clk 0:01:49]}  Rxc1 {[%clk 0:00:03]} 30. Kxc1 {[%clk 0:01:50]}  Rf6 {[%clk 0:00:03]} 31. Rh1 {[%clk 0:01:48]}  Rc6+ {[%clk 0:00:04]} 32. Kb2 {[%clk 0:01:49]}  Kf7 {[%clk 0:00:05]} 33. Bg3 {[%clk 0:01:49]}  Ke6 {[%clk 0:00:04]} 34. h5 {[%clk 0:01:48]}  Rc3 {[%clk 0:00:01]} 35. hxg6 {[%clk 0:01:48]}  hxg6 {[%clk 0:00:02]} 36. Rh7 {[%clk 0:01:47]}  Re3 {[%clk 0:00:02]} 37. Rxb7 {[%clk 0:01:46]}  Re2+ {[%clk 0:00:03]} 38. Ka3 {[%clk 0:01:46]}  Rxg2 {[%clk 0:00:04]} 39. Rb6+ {[%clk 0:01:46]}  Kf7 {[%clk 0:00:03]} 40. Bxe5 {[%clk 0:01:47]}  d3 {[%clk 0:00:03]} 41. Rd6 {[%clk 0:01:46]}  Rf2 {[%clk 0:00:03]} 42. Rxd3 {[%clk 0:01:46]}  Ke6 {[%clk 0:00:04]} 43. f4 {[%clk 0:01:45]}  g5 {[%clk 0:00:05]} 44. Rd6+ {[%clk 0:01:42]}  Ke7 {[%clk 0:00:05]} 45. Rf6 {[%clk 0:01:43]}  gxf4 {[%clk 0:00:05]} 46. Rxf4 {[%clk 0:01:44]}  Re2 {[%clk 0:00:06]} 47. Bd4 {[%clk 0:01:43]}  Ke6 {[%clk 0:00:05]} 48. Kb4 {[%clk 0:01:43]}  Rc2 {[%clk 0:00:05]} 49. Rf6+ {[%clk 0:01:43]} 1-0


[Site "https://www.chess.com"]

[Event "Titled Tuesday Blitz October 11 Late 2022"]
[White "Osmonbekov, Talaibek"]
[Black "Dilmukhametov, Artur"]
[WhiteFideId "2017253"]
[BlackFideId "24179922"]
[WhiteElo "2135"]
[BlackElo "2197"]
[Result "0-1"]
[Round "04"]
[TimeControl "180+1"]
[Date "2022.10.12"]
[WhiteClock "0:00:08"]
[BlackClock "0:01:57"]

1. d4 {[%clk 0:03:00]}  d5 {[%clk 0:02:58]} 2. Bf4 {[%clk 0:03:01]}  c5 {[%clk 0:02:57]} 3. e3 {[%clk 0:03:01]}  Nc6 {[%clk 0:02:57]} 4. Nc3 {[%clk 0:03:01]}  cxd4 {[%clk 0:02:57]} 5. exd4 {[%clk 0:03:01]}  Bf5 {[%clk 0:02:55]} 6. Nf3 {[%clk 0:02:52]}  e6 {[%clk 0:02:55]} 7. Bb5 {[%clk 0:02:50]}  Nf6 {[%clk 0:02:55]} 8. Ne5 {[%clk 0:02:39]}  Rc8 {[%clk 0:02:55]} 9. O-O {[%clk 0:02:36]}  Bb4 {[%clk 0:02:54]} 10. Ne2 {[%clk 0:02:25]}  O-O {[%clk 0:02:51]} 11. Ng3 {[%clk 0:02:25]}  Bg6 {[%clk 0:02:51]} 12. Bg5 {[%clk 0:02:14]}  Be7 {[%clk 0:02:43]} 13. Nxg6 {[%clk 0:01:44]}  hxg6 {[%clk 0:02:44]} 14. c3 {[%clk 0:01:43]}  Qb6 {[%clk 0:02:29]} 15. Qe2 {[%clk 0:01:41]}  Na5 {[%clk 0:02:23]} 16. Bd3 {[%clk 0:01:30]}  Nc4 {[%clk 0:02:22]} 17. Rab1 {[%clk 0:01:30]}  a5 {[%clk 0:02:17]} 18. h4 {[%clk 0:01:24]}  a4 {[%clk 0:02:17]} 19. h5 {[%clk 0:01:18]}  gxh5 {[%clk 0:02:18]} 20. Nxh5 {[%clk 0:01:09]}  Qd8 {[%clk 0:02:18]} 21. g3 {[%clk 0:00:54]}  g6 {[%clk 0:02:15]} 22. Nf4 {[%clk 0:00:47]}  Kg7 {[%clk 0:02:15]} 23. Bxg6 {[%clk 0:00:38]}  Qd6 {[%clk 0:02:08]} 24. Bd3 {[%clk 0:00:31]}  Rh8 {[%clk 0:02:08]} 25. Kg2 {[%clk 0:00:30]}  Ne4 {[%clk 0:02:03]} 26. Bxe7 {[%clk 0:00:24]}  Qxe7 {[%clk 0:02:03]} 27. Bxc4 {[%clk 0:00:15]}  Rxc4 {[%clk 0:02:00]} 28. Rh1 {[%clk 0:00:16]}  Rxh1 {[%clk 0:01:57]} 29. Rxh1 {[%clk 0:00:14]}  Qg5 {[%clk 0:01:57]} 30. f3 {[%clk 0:00:12]}  Qxg3+ {[%clk 0:01:57]} 31. Kf1 {[%clk 0:00:11]}  Qxf4 {[%clk 0:01:57]} 32. Ke1 {[%clk 0:00:09]}  Qc1+ {[%clk 0:01:56]} 33. Qd1 {[%clk 0:00:08]}  Qxd1+ {[%clk 0:01:57]} 0-1


[Site "https://www.chess.com"]

[Event "Titled Tuesday Blitz October 11 Late 2022"]
[White "P., Komal Kishore"]
[Black "Lopez Del Alamo, Antonio"]
[WhiteFideId "5016703"]
[BlackFideId "2227339"]
[WhiteElo "2104"]
[BlackElo "2175"]
[Result "1-0"]
[Round "04"]
[TimeControl "180+1"]
[Date "2022.10.12"]
[WhiteClock "0:00:19"]
[BlackClock "0:00:20"]

1. e4 {[%clk 0:03:00]}  c5 {[%clk 0:02:59]} 2. Nf3 {[%clk 0:02:59]}  e6 {[%clk 0:02:59]} 3. c3 {[%clk 0:02:58]}  Nf6 {[%clk 0:02:58]} 4. e5 {[%clk 0:02:59]}  Nd5 {[%clk 0:02:59]} 5. d4 {[%clk 0:03:00]}  d6 {[%clk 0:02:59]} 6. exd6 {[%clk 0:02:59]}  Bxd6 {[%clk 0:02:58]} 7. dxc5 {[%clk 0:02:59]}  Bxc5 {[%clk 0:02:58]} 8. c4 {[%clk 0:02:53]}  Bb4+ {[%clk 0:02:52]} 9. Bd2 {[%clk 0:02:48]}  Bxd2+ {[%clk 0:02:34]} 10. Qxd2 {[%clk 0:02:47]}  Nc7 {[%clk 0:02:33]} 11. Qxd8+ {[%clk 0:02:47]}  Kxd8 {[%clk 0:02:34]} 12. Nc3 {[%clk 0:02:45]}  a6 {[%clk 0:02:33]} 13. O-O-O+ {[%clk 0:02:43]}  Ke7 {[%clk 0:02:33]} 14. Bd3 {[%clk 0:02:40]}  Nc6 {[%clk 0:02:32]} 15. Rhe1 {[%clk 0:02:29]}  Kf8 {[%clk 0:02:02]} 16. Be4 {[%clk 0:02:11]}  g6 {[%clk 0:01:56]} 17. Na4 {[%clk 0:01:52]}  Kg7 {[%clk 0:01:50]} 18. Nb6 {[%clk 0:01:51]}  Rb8 {[%clk 0:01:49]} 19. g4 {[%clk 0:01:26]}  h6 {[%clk 0:01:12]} 20. h4 {[%clk 0:01:25]}  Na8 {[%clk 0:01:05]} 21. Nd7 {[%clk 0:01:13]}  Bxd7 {[%clk 0:01:02]} 22. Rxd7 {[%clk 0:01:14]}  Nb6 {[%clk 0:01:01]} 23. Bxc6 {[%clk 0:00:54]}  bxc6 {[%clk 0:00:58]} 24. Rc7 {[%clk 0:00:51]}  Nxc4 {[%clk 0:00:56]} 25. Rxe6 {[%clk 0:00:43]}  Rhc8 {[%clk 0:00:24]} 26. Rexc6 {[%clk 0:00:43]}  Rxc7 {[%clk 0:00:23]} 27. Rxc7 {[%clk 0:00:43]}  Nxb2 {[%clk 0:00:24]} 28. Ne5 {[%clk 0:00:37]}  Kf6 {[%clk 0:00:24]} 29. Nd7+ {[%clk 0:00:34]}  Ke7 {[%clk 0:00:22]} 30. Nxb8+ {[%clk 0:00:33]}  Kd6 {[%clk 0:00:23]} 31. Rxf7 {[%clk 0:00:27]}  Nd3+ {[%clk 0:00:23]} 32. Kd2 {[%clk 0:00:26]}  Ne5 {[%clk 0:00:24]} 33. Rf6+ {[%clk 0:00:25]}  Ke7 {[%clk 0:00:23]} 34. Rxa6 {[%clk 0:00:24]}  Nxg4 {[%clk 0:00:20]} 35. Rxg6 {[%clk 0:00:20]}  Nxf2 {[%clk 0:00:20]} 36. Rxh6 {[%clk 0:00:20]}  Ne4+ {[%clk 0:00:20]} 37. Kc2 {[%clk 0:00:20]}  Kf7 {[%clk 0:00:20]} 38. a4 {[%clk 0:00:19]} 1-0


[Site "https://www.chess.com"]

[Event "Titled Tuesday Blitz October 11 Late 2022"]
[White "Pakleza, Zbigniew"]
[Black "Sargsyan, Anna M."]
[WhiteFideId "1119290"]
[BlackFideId "13308130"]
[WhiteElo "2411"]
[BlackElo "2284"]
[Result "1-0"]
[Round "04"]
[TimeControl "180+1"]
[Date "2022.10.11"]
[WhiteClock "0:00:02"]
[BlackClock "0:00:04"]

1. d4 {[%clk 0:03:00]}  d5 {[%clk 0:02:59]} 2. Bf4 {[%clk 0:03:00]}  Nf6 {[%clk 0:02:59]} 3. e3 {[%clk 0:03:00]}  Bf5 {[%clk 0:02:59]} 4. c4 {[%clk 0:03:00]}  c6 {[%clk 0:02:59]} 5. Nc3 {[%clk 0:03:00]}  e6 {[%clk 0:02:59]} 6. Qb3 {[%clk 0:03:00]}  Qc8 {[%clk 0:02:55]} 7. Rc1 {[%clk 0:02:59]}  dxc4 {[%clk 0:02:51]} 8. Bxc4 {[%clk 0:02:59]}  Nbd7 {[%clk 0:02:51]} 9. h3 {[%clk 0:02:57]}  Be7 {[%clk 0:02:50]} 10. Nf3 {[%clk 0:02:57]}  O-O {[%clk 0:02:49]} 11. O-O {[%clk 0:02:57]}  Nb6 {[%clk 0:02:48]} 12. Be2 {[%clk 0:02:57]}  Nbd5 {[%clk 0:02:46]} 13. Bh2 {[%clk 0:02:54]}  Nxc3 {[%clk 0:02:45]} 14. bxc3 {[%clk 0:02:51]}  Ne4 {[%clk 0:02:44]} 15. c4 {[%clk 0:02:35]}  Rd8 {[%clk 0:02:13]} 16. Rfd1 {[%clk 0:02:32]}  b6 {[%clk 0:02:09]} 17. Ne5 {[%clk 0:02:21]}  f6 {[%clk 0:02:06]} 18. Nd3 {[%clk 0:02:10]}  Bg6 {[%clk 0:02:03]} 19. a4 {[%clk 0:01:56]}  Bf7 {[%clk 0:01:58]} 20. a5 {[%clk 0:01:45]}  bxa5 {[%clk 0:01:38]} 21. Qa4 {[%clk 0:01:19]}  Bd6 {[%clk 0:01:17]} 22. Bxd6 {[%clk 0:01:15]}  Nxd6 {[%clk 0:01:15]} 23. Qxa5 {[%clk 0:01:10]}  e5 {[%clk 0:01:06]} 24. c5 {[%clk 0:00:54]}  Nb7 {[%clk 0:01:00]} 25. Qa4 {[%clk 0:00:46]}  exd4 {[%clk 0:00:59]} 26. exd4 {[%clk 0:00:47]}  Qc7 {[%clk 0:00:36]} 27. Bf3 {[%clk 0:00:39]}  Na5 {[%clk 0:00:31]} 28. Rc3 {[%clk 0:00:23]}  Rab8 {[%clk 0:00:26]} 29. Nb4 {[%clk 0:00:11]}  Rxb4 {[%clk 0:00:03]} 30. Qxb4 {[%clk 0:00:10]}  Rb8 {[%clk 0:00:04]} 31. Qa3 {[%clk 0:00:10]}  Nb3 {[%clk 0:00:04]} 32. d5 {[%clk 0:00:07]}  Na5 {[%clk 0:00:02]} 33. dxc6 {[%clk 0:00:02]}  Qd8 {[%clk 0:00:03]} 34. Rxd8+ {[%clk 0:00:02]}  Rxd8 {[%clk 0:00:04]} 35. Qxa5 {[%clk 0:00:02]} 1-0


[Site "https://www.chess.com"]

[Event "Titled Tuesday Blitz October 11 Late 2022"]
[White "Pasti, Aron"]
[Black "Melikyan, Gnel"]
[WhiteFideId "785857"]
[BlackFideId "54109990"]
[WhiteElo "2477"]
[BlackElo "2680"]
[Result "1-0"]
[Round "04"]
[TimeControl "180+1"]
[Date "2022.10.12"]
[WhiteClock "0:00:08"]
[BlackClock "0:00:03"]

1. e4 {[%clk 0:03:00]}  d6 {[%clk 0:02:57]} 2. d4 {[%clk 0:03:00]}  Nf6 {[%clk 0:02:57]} 3. Nc3 {[%clk 0:03:00]}  e5 {[%clk 0:02:58]} 4. Nf3 {[%clk 0:03:00]}  Nc6 {[%clk 0:02:59]} 5. Bc4 {[%clk 0:02:58]}  Be7 {[%clk 0:02:58]} 6. O-O {[%clk 0:02:57]}  O-O {[%clk 0:02:56]} 7. a4 {[%clk 0:02:56]}  Bg4 {[%clk 0:02:55]} 8. dxe5 {[%clk 0:02:50]}  Nxe5 {[%clk 0:02:46]} 9. Be2 {[%clk 0:02:50]}  Nxf3+ {[%clk 0:02:26]} 10. Bxf3 {[%clk 0:02:51]}  Qd7 {[%clk 0:02:21]} 11. h3 {[%clk 0:02:40]}  Bxf3 {[%clk 0:02:21]} 12. Qxf3 {[%clk 0:02:41]}  Qe6 {[%clk 0:02:19]} 13. Bf4 {[%clk 0:02:38]}  Rfe8 {[%clk 0:02:13]} 14. Rfe1 {[%clk 0:02:38]}  Nd7 {[%clk 0:02:10]} 15. Nd5 {[%clk 0:02:38]}  Rac8 {[%clk 0:02:09]} 16. Rad1 {[%clk 0:02:32]}  Bf6 {[%clk 0:01:57]} 17. c3 {[%clk 0:02:27]}  Be5 {[%clk 0:01:52]} 18. Qg3 {[%clk 0:02:25]}  a6 {[%clk 0:01:44]} 19. Bxe5 {[%clk 0:02:25]}  Nxe5 {[%clk 0:01:40]} 20. f4 {[%clk 0:02:24]}  Nc4 {[%clk 0:01:37]} 21. b3 {[%clk 0:02:18]}  Nb6 {[%clk 0:01:31]} 22. Nxb6 {[%clk 0:02:02]}  cxb6 {[%clk 0:01:32]} 23. c4 {[%clk 0:02:02]}  Rc6 {[%clk 0:01:02]} 24. Rd5 {[%clk 0:02:02]}  h6 {[%clk 0:01:02]} 25. f5 {[%clk 0:02:02]}  Qf6 {[%clk 0:01:02]} 26. Qd3 {[%clk 0:01:47]}  Qh4 {[%clk 0:00:52]} 27. Re2 {[%clk 0:01:41]}  Qf4 {[%clk 0:00:49]} 28. g3 {[%clk 0:01:38]}  Qc1+ {[%clk 0:00:42]} 29. Kg2 {[%clk 0:01:38]}  Qa3 {[%clk 0:00:43]} 30. Rd2 {[%clk 0:01:34]}  Qc1 {[%clk 0:00:34]} 31. Rd1 {[%clk 0:01:23]}  Qa3 {[%clk 0:00:29]} 32. Rd2 {[%clk 0:01:20]}  Qb4 {[%clk 0:00:27]} 33. f6 {[%clk 0:00:43]}  g6 {[%clk 0:00:21]} 34. Qe3 {[%clk 0:00:35]}  Kh7 {[%clk 0:00:18]} 35. h4 {[%clk 0:00:35]}  h5 {[%clk 0:00:18]} 36. g4 {[%clk 0:00:34]}  hxg4 {[%clk 0:00:16]} 37. h5 {[%clk 0:00:34]}  Re5 {[%clk 0:00:13]} 38. hxg6+ {[%clk 0:00:28]}  Kxg6 {[%clk 0:00:14]} 39. Qf4 {[%clk 0:00:20]}  Qc3 {[%clk 0:00:14]} 40. Qxg4+ {[%clk 0:00:17]}  Kxf6 {[%clk 0:00:15]} 41. Rf2+ {[%clk 0:00:16]}  Ke7 {[%clk 0:00:14]} 42. Qh4+ {[%clk 0:00:15]}  Ke8 {[%clk 0:00:13]} 43. Qh8+ {[%clk 0:00:14]}  Ke7 {[%clk 0:00:11]} 44. Qh4+ {[%clk 0:00:14]}  Ke8 {[%clk 0:00:07]} 45. Qh8+ {[%clk 0:00:13]}  Ke7 {[%clk 0:00:07]} 46. Qg7 {[%clk 0:00:09]}  Kd7 {[%clk 0:00:02]} 47. Rxf7+ {[%clk 0:00:08]}  Kc8 {[%clk 0:00:03]} 48. Qf8+ {[%clk 0:00:08]} 1-0


[Site "https://www.chess.com"]

[Event "Titled Tuesday Blitz October 11 Late 2022"]
[White "Pert, Richard G"]
[Black "Schrik, Rachid"]
[WhiteFideId "404748"]
[BlackFideId "1009818"]
[WhiteElo "2441"]
[BlackElo "2098"]
[Result "1-0"]
[Round "04"]
[TimeControl "180+1"]
[Date "2022.10.12"]
[WhiteClock "0:00:31"]
[BlackClock "0:00:03"]

1. d4 {[%clk 0:03:00]}  Nf6 {[%clk 0:02:59]} 2. Bg5 {[%clk 0:03:00]}  d5 {[%clk 0:02:59]} 3. e3 {[%clk 0:03:00]}  c5 {[%clk 0:02:58]} 4. Bxf6 {[%clk 0:03:00]}  gxf6 {[%clk 0:02:57]} 5. dxc5 {[%clk 0:03:00]}  e5 {[%clk 0:02:58]} 6. Nc3 {[%clk 0:02:55]}  Be6 {[%clk 0:02:54]} 7. Qf3 {[%clk 0:02:46]}  e4 {[%clk 0:02:08]} 8. Qh5 {[%clk 0:02:43]}  Bxc5 {[%clk 0:01:57]} 9. Nxe4 {[%clk 0:02:15]}  Bb4+ {[%clk 0:01:44]} 10. c3 {[%clk 0:02:08]}  dxe4 {[%clk 0:01:43]} 11. cxb4 {[%clk 0:02:01]}  Nc6 {[%clk 0:01:42]} 12. Bb5 {[%clk 0:01:56]}  Qb6 {[%clk 0:01:37]} 13. Qc5 {[%clk 0:01:42]}  Qc7 {[%clk 0:01:17]} 14. Ne2 {[%clk 0:01:39]}  O-O-O {[%clk 0:01:04]} 15. Bxc6 {[%clk 0:01:34]}  Qxc6 {[%clk 0:00:58]} 16. Nd4 {[%clk 0:01:32]}  Qxc5 {[%clk 0:00:51]} 17. bxc5 {[%clk 0:01:33]}  a5 {[%clk 0:00:50]} 18. b3 {[%clk 0:01:22]}  Rd5 {[%clk 0:00:48]} 19. Rc1 {[%clk 0:01:19]}  Kb8 {[%clk 0:00:37]} 20. a3 {[%clk 0:01:16]}  f5 {[%clk 0:00:30]} 21. g3 {[%clk 0:01:15]}  h5 {[%clk 0:00:30]} 22. b4 {[%clk 0:01:06]}  h4 {[%clk 0:00:29]} 23. Kd2 {[%clk 0:01:05]}  Rhd8 {[%clk 0:00:10]} 24. Kc3 {[%clk 0:01:01]}  Bd7 {[%clk 0:00:10]} 25. gxh4 {[%clk 0:00:56]}  Rc8 {[%clk 0:00:09]} 26. Kb2 {[%clk 0:00:50]}  Rh8 {[%clk 0:00:07]} 27. Rhg1 {[%clk 0:00:45]}  Rxh4 {[%clk 0:00:06]} 28. b5 {[%clk 0:00:35]}  f4 {[%clk 0:00:06]} 29. Rg8+ {[%clk 0:00:33]}  Kc7 {[%clk 0:00:03]} 30. b6# {[%clk 0:00:31]} 1-0


[Site "https://www.chess.com"]

[Event "Titled Tuesday Blitz October 11 Late 2022"]
[White "Petrovic, Aleksa"]
[Black "Gubajdullin, Alexei"]
[WhiteFideId "967629"]
[BlackFideId "4141202"]
[WhiteElo "2437"]
[BlackElo "2621"]
[Result "1-0"]
[Round "04"]
[TimeControl "180+1"]
[Date "2022.10.12"]
[WhiteClock "0:00:25"]
[BlackClock "0:00:19"]

1. d4 {[%clk 0:03:00]}  Nf6 {[%clk 0:02:59]} 2. c4 {[%clk 0:03:00]}  g6 {[%clk 0:02:59]} 3. Nc3 {[%clk 0:03:00]}  Bg7 {[%clk 0:03:00]} 4. e4 {[%clk 0:03:00]}  d6 {[%clk 0:03:00]} 5. Be2 {[%clk 0:03:01]}  O-O {[%clk 0:03:01]} 6. Nf3 {[%clk 0:03:01]}  Na6 {[%clk 0:03:01]} 7. O-O {[%clk 0:03:01]}  e5 {[%clk 0:03:02]} 8. Re1 {[%clk 0:03:00]}  c6 {[%clk 0:03:02]} 9. Bf1 {[%clk 0:03:00]}  Bg4 {[%clk 0:03:01]} 10. d5 {[%clk 0:02:59]}  c5 {[%clk 0:02:57]} 11. h3 {[%clk 0:02:57]}  Bd7 {[%clk 0:02:56]} 12. Re2 {[%clk 0:02:51]}  Kh8 {[%clk 0:02:54]} 13. Ne1 {[%clk 0:02:51]}  Ng8 {[%clk 0:02:53]} 14. Nd3 {[%clk 0:02:51]}  f5 {[%clk 0:02:53]} 15. exf5 {[%clk 0:02:51]}  gxf5 {[%clk 0:02:53]} 16. f4 {[%clk 0:02:51]}  e4 {[%clk 0:02:51]} 17. Nf2 {[%clk 0:02:47]}  Qh4 {[%clk 0:02:39]} 18. Kh2 {[%clk 0:02:23]}  Nf6 {[%clk 0:02:26]} 19. g3 {[%clk 0:02:20]}  Qh6 {[%clk 0:02:26]} 20. Be3 {[%clk 0:02:16]}  Rg8 {[%clk 0:02:25]} 21. Bg2 {[%clk 0:02:03]}  Nh5 {[%clk 0:02:24]} 22. Nh1 {[%clk 0:02:01]}  Nb4 {[%clk 0:02:23]} 23. Rd2 {[%clk 0:01:50]}  Bf6 {[%clk 0:02:19]} 24. a3 {[%clk 0:01:48]}  Nd3 {[%clk 0:02:19]} 25. Rxd3 {[%clk 0:01:48]}  exd3 {[%clk 0:02:18]} 26. Qxd3 {[%clk 0:01:47]}  Rg7 {[%clk 0:02:13]} 27. Rg1 {[%clk 0:01:46]}  Rag8 {[%clk 0:02:12]} 28. Bf3 {[%clk 0:01:44]}  Re7 {[%clk 0:01:59]} 29. Ne2 {[%clk 0:01:39]}  Rge8 {[%clk 0:01:58]} 30. Bc1 {[%clk 0:01:35]}  Bg7 {[%clk 0:01:53]} 31. Kg2 {[%clk 0:01:30]}  Nf6 {[%clk 0:01:52]} 32. Nf2 {[%clk 0:01:27]}  Ne4 {[%clk 0:01:52]} 33. Nc3 {[%clk 0:01:04]}  Nxf2 {[%clk 0:01:50]} 34. Kxf2 {[%clk 0:01:02]}  Qxh3 {[%clk 0:01:46]} 35. Rh1 {[%clk 0:00:57]}  Qxh1 {[%clk 0:01:24]} 36. Bxh1 {[%clk 0:00:56]}  Re1 {[%clk 0:01:24]} 37. Bf3 {[%clk 0:00:38]}  Rxc1 {[%clk 0:01:24]} 38. Ne2 {[%clk 0:00:37]}  Ra1 {[%clk 0:01:18]} 39. b4 {[%clk 0:00:37]}  b6 {[%clk 0:01:00]} 40. bxc5 {[%clk 0:00:35]}  bxc5 {[%clk 0:01:00]} 41. Qb3 {[%clk 0:00:35]}  Bf6 {[%clk 0:00:38]} 42. Qb7 {[%clk 0:00:34]}  Re7 {[%clk 0:00:37]} 43. Qb8+ {[%clk 0:00:33]}  Kg7 {[%clk 0:00:37]} 44. Qxd6 {[%clk 0:00:33]}  Rxa3 {[%clk 0:00:29]} 45. Qxc5 {[%clk 0:00:32]}  Rd3 {[%clk 0:00:22]} 46. d6 {[%clk 0:00:28]}  Rd2 {[%clk 0:00:17]} 47. dxe7 {[%clk 0:00:24]}  Bd4+ {[%clk 0:00:14]} 48. Qxd4+ {[%clk 0:00:25]}  Rxd4 {[%clk 0:00:14]} 49. Nxd4 {[%clk 0:00:25]}  Kf7 {[%clk 0:00:14]} 50. Bc6 {[%clk 0:00:24]}  Kxe7 {[%clk 0:00:11]} 51. Bxd7 {[%clk 0:00:24]}  Kxd7 {[%clk 0:00:11]} 52. Nxf5 {[%clk 0:00:25]}  a5 {[%clk 0:00:11]} 53. Nd4 {[%clk 0:00:25]}  a4 {[%clk 0:00:11]} 54. Ke3 {[%clk 0:00:24]}  Kd6 {[%clk 0:00:11]} 55. Kd3 {[%clk 0:00:25]}  Kc5 {[%clk 0:00:12]} 56. Kc3 {[%clk 0:00:25]}  a3 {[%clk 0:00:12]} 57. Nb3+ {[%clk 0:00:21]}  Kd6 {[%clk 0:00:12]} 58. Kb4 {[%clk 0:00:21]}  a2 {[%clk 0:00:12]} 59. Ka3 {[%clk 0:00:21]}  h5 {[%clk 0:00:12]} 60. Kxa2 {[%clk 0:00:21]}  h4 {[%clk 0:00:13]} 61. gxh4 {[%clk 0:00:21]}  Kc6 {[%clk 0:00:12]} 62. c5 {[%clk 0:00:21]}  Kd5 {[%clk 0:00:13]} 63. h5 {[%clk 0:00:22]}  Ke6 {[%clk 0:00:13]} 64. h6 {[%clk 0:00:22]}  Kf5 {[%clk 0:00:14]} 65. c6 {[%clk 0:00:23]}  Kg4 {[%clk 0:00:15]} 66. c7 {[%clk 0:00:23]}  Kf3 {[%clk 0:00:16]} 67. c8=Q {[%clk 0:00:24]}  Ke4 {[%clk 0:00:17]} 68. h7 {[%clk 0:00:24]}  Kd3 {[%clk 0:00:18]} 69. h8=Q {[%clk 0:00:24]}  Ke2 {[%clk 0:00:19]} 70. Qe5+ {[%clk 0:00:24]}  Kf3 {[%clk 0:00:19]} 71. Qh3+ {[%clk 0:00:24]}  Kf2 {[%clk 0:00:19]} 72. Qee3# {[%clk 0:00:25]} 1-0


[Site "https://www.chess.com"]

[Event "Titled Tuesday Blitz October 11 Late 2022"]
[White "Prieto Aranguren, Alain"]
[Black "Burke, Paul"]
[WhiteFideId "2268906"]
[BlackFideId "2605767"]
[WhiteElo "2209"]
[BlackElo "1879"]
[Result "0-1"]
[Round "04"]
[TimeControl "180+1"]
[Date "2022.10.12"]
[WhiteClock "0:00:43"]
[BlackClock "0:00:07"]

1. e4 {[%clk 0:02:58]}  e5 {[%clk 0:02:58]} 2. f3 {[%clk 0:02:57]}  Nc6 {[%clk 0:02:57]} 3. c3 {[%clk 0:02:55]}  Nf6 {[%clk 0:02:55]} 4. d4 {[%clk 0:02:55]}  exd4 {[%clk 0:02:54]} 5. cxd4 {[%clk 0:02:55]}  d5 {[%clk 0:02:54]} 6. e5 {[%clk 0:02:55]}  Nh5 {[%clk 0:02:45]} 7. Be3 {[%clk 0:02:54]}  g6 {[%clk 0:02:42]} 8. Nc3 {[%clk 0:02:53]}  Ng7 {[%clk 0:02:39]} 9. g4 {[%clk 0:02:49]}  Ne6 {[%clk 0:02:35]} 10. Qd2 {[%clk 0:02:46]}  h6 {[%clk 0:02:34]} 11. h4 {[%clk 0:02:45]}  Be7 {[%clk 0:02:24]} 12. h5 {[%clk 0:02:45]}  g5 {[%clk 0:02:23]} 13. Nge2 {[%clk 0:02:42]}  Bb4 {[%clk 0:02:15]} 14. Ng3 {[%clk 0:02:41]}  Ng7 {[%clk 0:02:11]} 15. Bd3 {[%clk 0:02:39]}  Be6 {[%clk 0:02:07]} 16. Bc2 {[%clk 0:02:38]}  Qe7 {[%clk 0:02:02]} 17. a3 {[%clk 0:02:37]}  Bxc3 {[%clk 0:02:01]} 18. bxc3 {[%clk 0:02:36]}  Na5 {[%clk 0:01:52]} 19. Qe2 {[%clk 0:02:28]}  Nc4 {[%clk 0:01:49]} 20. Bc1 {[%clk 0:02:28]}  O-O {[%clk 0:01:40]} 21. Nf5 {[%clk 0:02:26]}  Bxf5 {[%clk 0:01:33]} 22. gxf5 {[%clk 0:02:25]}  f6 {[%clk 0:01:29]} 23. e6 {[%clk 0:02:24]}  Nd6 {[%clk 0:01:23]} 24. f4 {[%clk 0:02:16]}  Ndxf5 {[%clk 0:01:21]} 25. fxg5 {[%clk 0:02:17]}  fxg5 {[%clk 0:01:15]} 26. a4 {[%clk 0:02:09]}  Qxe6 {[%clk 0:01:13]} 27. Ba3 {[%clk 0:02:08]}  Qxe2+ {[%clk 0:01:10]} 28. Kxe2 {[%clk 0:02:08]}  Ng3+ {[%clk 0:01:10]} 29. Kd3 {[%clk 0:01:53]}  Rf3+ {[%clk 0:01:04]} 30. Kd2 {[%clk 0:01:52]}  Nxh1 {[%clk 0:01:04]} 31. Rxh1 {[%clk 0:01:49]}  Rf2+ {[%clk 0:01:02]} 32. Kc1 {[%clk 0:01:49]}  Re8 {[%clk 0:01:00]} 33. Bd3 {[%clk 0:01:43]}  Nf5 {[%clk 0:00:53]} 34. Kb1 {[%clk 0:01:37]}  Ng3 {[%clk 0:00:49]} 35. Rg1 {[%clk 0:01:34]}  Ne4 {[%clk 0:00:49]} 36. Ka1 {[%clk 0:01:30]}  Nxc3 {[%clk 0:00:47]} 37. Bb2 {[%clk 0:01:21]}  Nxa4 {[%clk 0:00:46]} 38. Ba3 {[%clk 0:01:20]}  Re3 {[%clk 0:00:39]} 39. Rd1 {[%clk 0:01:13]}  Nc3 {[%clk 0:00:35]} 40. Bc2 {[%clk 0:00:52]}  Rxc2 {[%clk 0:00:30]} 41. Rd2 {[%clk 0:00:51]}  Rxd2 {[%clk 0:00:26]} 42. Bc1 {[%clk 0:00:51]}  Nb5 {[%clk 0:00:10]} 43. Bxd2 {[%clk 0:00:49]}  Rd3 {[%clk 0:00:10]} 44. Bb4 {[%clk 0:00:49]}  Rxd4 {[%clk 0:00:10]} 45. Bc5 {[%clk 0:00:49]}  Rh4 {[%clk 0:00:09]} 46. Bxa7 {[%clk 0:00:49]}  Rxh5 {[%clk 0:00:09]} 47. Bb8 {[%clk 0:00:49]}  Rh1+ {[%clk 0:00:08]} 48. Kb2 {[%clk 0:00:48]}  g4 {[%clk 0:00:09]} 49. Bxc7 {[%clk 0:00:48]}  h5 {[%clk 0:00:09]} 50. Bf4 {[%clk 0:00:47]}  h4 {[%clk 0:00:09]} 51. Kb3 {[%clk 0:00:47]}  g3 {[%clk 0:00:09]} 52. Kb4 {[%clk 0:00:47]}  g2 {[%clk 0:00:09]} 53. Be3 {[%clk 0:00:47]}  g1=Q {[%clk 0:00:09]} 54. Bxg1 {[%clk 0:00:48]}  Rxg1 {[%clk 0:00:09]} 55. Kxb5 {[%clk 0:00:47]}  h3 {[%clk 0:00:10]} 56. Kc5 {[%clk 0:00:47]}  h2 {[%clk 0:00:10]} 57. Kd6 {[%clk 0:00:47]}  h1=Q {[%clk 0:00:10]} 58. Ke5 {[%clk 0:00:46]}  Qh5+ {[%clk 0:00:09]} 59. Kd6 {[%clk 0:00:47]}  Rg6+ {[%clk 0:00:09]} 60. Kc5 {[%clk 0:00:48]}  Qe2 {[%clk 0:00:08]} 61. Kb4 {[%clk 0:00:44]}  Qe4+ {[%clk 0:00:07]} 62. Kc5 {[%clk 0:00:44]}  Rc6+ {[%clk 0:00:07]} 63. Kb5 {[%clk 0:00:44]}  Qc4+ {[%clk 0:00:07]} 64. Ka5 {[%clk 0:00:43]}  Ra6# {[%clk 0:00:07]} 0-1


[Site "https://www.chess.com"]